[Event "ONJK FGH 1"]
[Site "Enschede, Netherlands"]
[Date "2022.08.10"]
[Round "9.3"]
[White "Jongejan, Eviënne"]
[Black "De Wit, Jim"]
[Result "1-0"]
[TimeControl "25min + 10sec/move"]
[WhiteElo "414"]
[BlackElo "889"]

1. e4 {[%clk 00:25:12]} {[%emt 00:00:08]} c5 {[%clk 00:25:19]} {[%emt
00:00:02]} 2. d3 {[%clk 00:25:20]} {[%emt 00:00:02]} d6 {[%clk 00:25:26]}
{[%emt 00:00:03]} 3. Nf3 {[%clk 00:25:27]} {[%emt 00:00:02]} Nc6 {[%clk
00:25:34]} {[%emt 00:00:02]} 4. Nc3 {[%clk 00:25:35]} {[%emt 00:00:02]} Nf6
{[%clk 00:25:40]} {[%emt 00:00:05]} 5. Bd2 {[%clk 00:25:39]} {[%emt 00:00:05]}
Bg4 {[%clk 00:25:47]} {[%emt 00:00:03]} 6. h3 {[%clk 00:25:47]} {[%emt
00:00:03]} Bh5 {[%clk 00:25:55]} {[%emt 00:00:01]} 7. g4 {[%clk 00:25:54]}
{[%emt 00:00:04]} Bg6 {[%clk 00:25:59]} {[%emt 00:00:04]} 8. Be2 {[%clk
00:25:57]} {[%emt 00:00:09]} e6 {[%emt 00:00:03]} 9. Bg5 {[%emt 00:00:05]} Be7
{[%clk 00:25:58]} {[%emt 00:00:03]} 10. Bxf6 {[%clk 00:26:04]} {[%emt
00:00:02]} Bxf6 {[%clk 00:26:06]} {[%emt 00:00:03]} 11. Qd2 {[%clk 00:25:52]}
{[%emt 00:00:22]} Bxc3 {[%clk 00:26:11]} {[%emt 00:00:05]} 12. Qxc3 {[%clk
00:25:55]} {[%emt 00:00:05]} O-O {[%clk 00:26:18]} {[%emt 00:00:04]} 13. O-O
{[%clk 00:25:26]} {[%emt 00:00:39]} d5 {[%clk 00:26:19]} {[%emt 00:00:09]} 14.
exd5 {[%clk 00:25:30]} {[%emt 00:00:06]} exd5 {[%clk 00:26:27]} {[%emt
00:00:02]} 15. Qxc5 {[%clk 00:25:18]} {[%emt 00:00:21]} Qd7 {[%clk 00:26:13]}
{[%emt 00:00:25]} 16. Ne5 {[%emt 00:00:06]} Nxe5 {[%emt 00:00:07]} 17. d4
{[%clk 00:25:01]} {[%emt 00:00:15]} Nc6 {[%emt 00:00:08]} 18. c3 {[%clk
00:24:45]} {[%emt 00:00:25]} b6 {[%clk 00:26:19]} {[%emt 00:00:05]} 19. Qb5
{[%clk 00:24:45]} {[%emt 00:00:10]} Qc7 {[%clk 00:26:23]} {[%emt 00:00:06]} 20.
Qxd5 {[%emt 00:00:08]} Rad8 {[%emt 00:00:10]} 21. Qc4 {[%emt 00:00:21]} Rfe8
{[%emt 00:00:06]} 22. Bf3 {[%clk 00:23:55]} {[%emt 00:00:16]} Rd6 {[%clk
00:26:01]} {[%emt 00:00:31]} 23. d5 {[%clk 00:23:42]} {[%emt 00:00:24]} b5
{[%clk 00:24:11]} {[%emt 00:02:39]} 24. Rfe1 {[%clk 00:23:37]} {[%emt
00:00:16]} f6 {[%clk 00:23:58]} {[%emt 00:00:22]} 25. Qxb5 {[%clk 00:23:10]}
{[%emt 00:00:38]} Ne7 {[%clk 00:23:08]} {[%emt 00:00:57]} 26. c4 {[%clk
00:21:48]} {[%emt 00:01:33]} Rdd8 {[%clk 00:23:02]} {[%emt 00:00:17]} 27. Qb4
{[%clk 00:21:41]} {[%emt 00:00:17]} Bf7 {[%clk 00:22:17]} {[%emt 00:00:56]} 28.
Red1 {[%clk 00:20:35]} {[%emt 00:01:16]} Qb8 {[%clk 00:21:36]} {[%emt
00:00:43]} 29. Qc3 {[%clk 00:19:57]} {[%emt 00:00:55]} Ng6 {[%clk 00:21:30]}
{[%emt 00:00:14]} 30. Re1 {[%clk 00:19:08]} {[%emt 00:01:00]} Rxe1+ {[%clk
00:21:22]} {[%emt 00:00:19]} 31. Rxe1 {[%clk 00:18:58]} {[%emt 00:00:20]} Ne5
{[%clk 00:21:08]} {[%emt 00:00:23]} 32. b3 {[%clk 00:18:07]} {[%emt 00:01:02]}
Re8 {[%clk 00:20:48]} {[%emt 00:00:27]} 33. Be4 {[%clk 00:17:15]} {[%emt
00:01:04]} Qc7 {[%clk 00:20:30]} {[%emt 00:00:29]} 34. c5 {[%clk 00:16:59]}
{[%emt 00:00:27]} Rc8 {[%clk 00:19:38]} {[%emt 00:00:58]} 35. Bf5 {[%clk
00:16:44]} {[%emt 00:00:38]} Rd8 {[%clk 00:19:06]} {[%emt 00:00:50]} 36. d6
{[%clk 00:16:46]} {[%emt 00:00:11]} Qc6 {[%clk 00:18:36]} {[%emt 00:00:39]} 37.
Qa5 {[%clk 00:16:02]} {[%emt 00:00:54]} Rf8 {[%clk 00:17:37]} {[%emt 00:01:05]}
38. Be4 {[%clk 00:15:49]} {[%emt 00:00:23]} Bd5 {[%clk 00:17:17]} {[%emt
00:00:33]} 39. Bxd5+ {[%clk 00:15:42]} {[%emt 00:00:18]} Qxd5 {[%clk 00:16:52]}
{[%emt 00:00:33]} 40. Qxa7 {[%clk 00:15:27]} {[%emt 00:00:29]} Nf3+ {[%clk
00:16:53]} {[%emt 00:00:07]} 41. Kf1 {[%clk 00:15:26]} {[%emt 00:00:12]} Nxe1
{[%clk 00:16:36]} {[%emt 00:00:27]} 42. Kxe1 {[%clk 00:15:27]} {[%emt
00:00:10]} Rc8 {[%clk 00:15:31]} {[%emt 00:01:08]} 43. Qd7 {[%clk 00:15:18]}
{[%emt 00:00:25]} Qxc5 {[%clk 00:14:58]} {[%emt 00:00:44]} 44. b4 {[%clk
00:14:51]} {[%emt 00:00:35]} Rc7 {[%clk 00:10:53]} {[%emt 00:04:16]} 45. Qe8#
{[%clk 00:14:42]} {[%emt 00:00:08]} 1-0